Cogmind - Beta 13 X2 @@@ ROGUE MODE // 2023.12.20 @ 19:40:07 Player: Plexion Result: Self-destructed Performance ------------- Evolutions (3) 1500 Regions Visited (9) 1800 Robots Destroyed (79) 395 Value Destroyed (2883) 2883 Prototype IDs (21) 420 Alien Tech Used (0) 0 Bonus (2531) 2531 TOTAL SCORE: 9529 Bonus ------- Follower Combat Kills 317 Met Imprinter 300 Destroyed Z-Imprinter 1000 Triggered Deep Caves Wall 500 Exposed GOLEM Chamber 500 Friendly Fire -86 Cogmind --------- Core Integrity 176/700 Matter 221/300 Energy 100/100 System Corruption 4% Temperature Cool (87) Movement Core (900) Ox17 Location -7/Deep Caves Parts ------- > --- POWER (1) -------- (None) > --- PROPULSION (4) --- (None) > --- UTILITY (6) ------ High-capacity Storage Unit Makeshift Light Armor Plating > --- WEAPON (2) ------- EM Pulse Cannon Makeshift Hammer > --- INVENTORY (20) --- Light Antimatter Reactor Cargo Legs Zionite Biocell (600) Zionite Biocell (600) Zionite Biocell (600) Zionite Metafield Generator Advanced Terrain Scan Processor Experimental Reaction Control System Trap Reconfigurator Assault Rifle Light Assault Rifle Subdweller Shrapnel Launcher Multitool CR-A16's Pointy Stick Peak State ------------ > --- POWER ------------ Cooled Deuterium Engine > --- PROPULSION ------- Medium Treads Armored Huge Wheel > --- UTILITY ---------- High-capacity Storage Unit Zionite Weapon Casing Zionite Light Carapace Zionite Heavy Carapace Makeshift Light Armor Plating > --- WEAPON ----------- EM Pulse Cannon Makeshift Hammer > --- INVENTORY -------- Light Antimatter Reactor Cargo Legs Zionite Biocell Zionite Biocell Zionite Biocell Zionite Biocell Zionite Metafield Generator Advanced Terrain Scan Processor Experimental Reaction Control System Zionite Weapon Casing Zionite Weapon Casing Zionite Light Carapace Assault Rifle Light Assault Rifle Rocket Launcher Subdweller Shrapnel Launcher Multitool CR-A16's Pointy Stick [Rating: 63] Favorites ----------- Power Cooled Deuterium Engine Engine Cooled Deuterium Engine Propulsion Light Treads Treads Light Treads Wheel Compact Wheel Utility Makeshift Light Armor Plating Device Seismic Detector Storage Huge Storage Unit Processor Improved Targeting Computer Hackware System Shield Protection Makeshift Light Armor Plating Weapon Assault Rifle Energy Gun Heavy EM Shotgun Energy Cannon Subdweller Beam Cannon Ballistic Gun Assault Rifle Launcher Rocket Launcher Impact Weapon Makeshift Hammer Build | -11 -10 -10 -10 -8 -7 -7 -7 -7 -7 ------- Run | Yrd Mat Min Sub Mat Fac Low Low Zio Dee Slots Evolved 6 | . . . . 4 2 . . . . Power . | . . . . . . . . . . Propulsion 2 | . . . . 2 . . . . . Utility 4 | . . . . 2 2 . . . . Weapon . | . . . . . . . . . . Parts Attached 109 | 6 7 4 8 28 4 1 4 10 37 Power 7 | 1 2 . 1 3 . . . . . Engine 7 | 1 2 . 1 3 . . . . . Core . | . . . . . . . . . . Reactor . | . . . . . . . . . . Propulsion 19 | 2 1 2 1 9 . . 2 . 2 Treads 17 | 2 1 1 1 9 . . 2 . 1 Leg . | . . . . . . . . . . Wheel 2 | . . 1 . . . . . . 1 Hover . | . . . . . . . . . . Flight . | . . . . . . . . . . Utility 42 | 1 2 1 3 5 4 . 2 3 21 Device 6 | . . . 1 . 1 . . . 4 Storage 6 | 1 1 1 1 . 1 . . . 1 Processor 3 | . . . . 1 1 . . 1 . Hackware 1 | . . . . . 1 . . . . Protection 26 | . 1 . 1 4 . . 2 2 16 Artifact . | . . . . . . . . . . Weapon 41 | 2 2 1 3 11 . 1 . 7 14 Energy Gun 1 | . . . . 1 . . . . . Energy Cannon 6 | . . . 2 1 . . . . 3 Ballistic Gun 23 | 2 2 1 1 6 . 1 . 6 4 Ballistic Cannon . | . . . . . . . . . . Launcher 8 | . . . . 3 . . . . 5 Special Weapon . | . . . . . . . . . . Impact Weapon 3 | . . . . . . . . 1 2 Slashing Weapon . | . . . . . . . . . . Piercing Weapon . | . . . . . . . . . . Special Melee Weapon . | . . . . . . . . . . Unidentified Prototypes 11 | . . . 1 2 . . . . 8 Parts Lost 35 | . 1 1 2 8 . . . . 23 Power 2 | . 1 . . . . . . . 1 Propulsion 13 | . . 1 1 5 . . . . 6 Utility 15 | . . . . 3 . . . . 12 Weapon 5 | . . . 1 . . . . . 4 Highest Loss Streak 8 | . 1 1 1 2 . . . . 8 To Critical Strikes . | . . . . . . . . . . Average Slot Usage (%) 96 | . 97 99 97 98 98 100 100 97 81 Engine 9 | . 14 14 14 9 7 7 7 7 6 Treads 25 | . 28 26 14 34 30 30 30 30 13 Wheel 3 | . . 1 14 . . . . . 5 Device 2 | . . . 2 . 6 7 7 7 1 Storage 9 | . 14 14 11 9 7 7 7 7 7 Processor 5 | . . . . 9 7 7 7 9 8 Hackware 1 | . . . . . 6 7 7 4 . Protection 15 | . 11 14 11 18 15 15 15 15 20 Energy Cannon 3 | . . . 12 2 7 4 . . 2 Ballistic Gun 15 | . 28 28 15 15 7 10 15 12 8 Naked Turns . | . . . . . . . . . . Heaviest Build 109 | 13 32 92 99 108 109 69 64 66 81 Greatest Support 93 | 40 40 40 16 82 82 82 93 93 93 Greatest Overweight (x) 6 | . . 5 6 2 1 . . . 2 Average Overweight (x) 1 | . . . 5 1 . . . . 1 Largest Inventory Capacity 25 | 8 15 25 25 25 25 20 20 20 20 Average Capacity 20 | 6 14 15 21 25 22 20 20 20 20 Most Carried 25 | 3 15 16 25 25 17 17 20 20 20 Average Carried 18 | 1 11 14 18 22 14 16 19 19 19 Final Capacity 25 | 8 15 25 25 25 20 20 20 20 20 Final Carried 25 | 3 15 16 25 14 17 16 20 20 15 Class Distribution -------------------- 77% | Mutant 12% | Derelict-Mutant 9% | Subdweller-Mutant Dominant Class ---------------- Mutant | -10/Materials Mutant | -10/Mines Mutant | -10/Subcaves Mutant | -8/Materials Mutant | -7/Factory Mutant | -7/Lower Caves Mutant | -7/Lower Caves Mutant | -7/Zion Mutant | -7/Deep Caves Resources | -11 -10 -10 -10 -8 -7 -7 -7 -7 -7 ----------- Run | Yrd Mat Min Sub Mat Fac Low Low Zio Dee Matter Collected 2509 | 244 304 119 130 858 73 55 47 75 604 Remotely . | . . . . . . . . . . Salvage Created 3367 | . 562 79 393 1207 165 42 . . 919 Parts 203 | . 41 9 31 71 7 3 . . 41 Haulers Intercepted 4 | . 2 . . 2 . . . . . Recyclers Shooed 3 | . 2 . . 1 . . . . . Parts Field Recycled . | . . . . . . . . . . Retrieved Matter . | . . . . . . . . . . Parts Self-Destructed 27 | . . . 13 . . 8 5 1 . Prevented 8 | . . . . . . 3 5 . . Kills | -11 -10 -10 -10 -8 -7 -7 -7 -7 -7 ------- Run | Yrd Mat Min Sub Mat Fac Low Low Zio Dee Combat Hostiles Destroyed 89 | . 11 4 6 29 3 1 . . 35 Guns 41 | . 11 4 2 20 1 . . . 3 Cannons 8 | . . . 3 . 2 1 . . 2 AOE 36 | . . . . 9 . . . . 27 Classes Destroyed 16 | . 6 . 2 4 1 . . . 3 Worker 4 | . 1 . . 3 . . . . . Builder 2 | . 2 . . . . . . . . Hauler 4 | . 2 . . 2 . . . . . Recycler 2 | . . . . 2 . . . . . Watcher 3 | . 2 . . 1 . . . . . Swarmer 14 | . 4 3 . 7 . . . . . Grunt 21 | . 7 1 . 11 2 . . . . Duelist 1 | . . . . 1 . . . . . Sentry 8 | . . . . 8 . . . . . Hunter 3 | . . . . 2 . 1 . . . Programmer 1 | . . . . . 1 . . . . Artisan 2 | . . . 2 . . . . . . Subdweller 6 | . . . 6 . . . . . . Z-Light 7 | . . . . . . . . . 7 Assembled 24 | . . . . . . . . . 24 Golem 3 | . . . . . . . . . 3 Best Kill Streak 21 | . 4 3 2 8 2 1 . . 21 Combat Bots Only 21 | . 3 3 2 6 2 1 . . 21 Max Kills in Single Turn 9 | . 1 1 1 4 1 1 . . 9 Gunslinging . | . . . . . . . . . . Exploded 9 | . . . . 4 . . . . 9 Melee . | . . . . . . . . . . Uniques/NPCs Destroyed 1 | . . . . . . . . . 1 Z-Imprinter (-7/Deep Caves) Combat | -11 -10 -10 -10 -8 -7 -7 -7 -7 -7 -------- Run | Yrd Mat Min Sub Mat Fac Low Low Zio Dee Hostile Shots Fired 561 | . 67 21 24 175 36 10 . . 228 Missed 178 | . 19 5 6 50 20 2 . . 76 Damage Taken 7489 | . 556 178 538 1979 182 73 . . 3983 Core 706 | . 93 12 21 56 18 . . . 506 Absorbed by Shields . | . . . . . . . . . . Redirected to Shielding 461 | . . . . . . . . . 461 Regen/Repaired (Parts) 159 | . . . . 159 . . . . . Core Remaining (%) 79 | 100 . . 49 89 . . . . . Volleys Fired 286 | . 57 10 43 102 10 4 . . 60 Largest 2 | . 2 2 2 2 2 2 . . 2 Hottest 110 | . 40 40 110 100 100 100 . . 73 Shots Fired 497 | . 114 20 64 193 18 7 . . 81 Gun 397 | . 114 20 22 181 11 4 . . 45 Cannon 75 | . . . 42 5 7 3 . . 18 Launcher 25 | . . . . 7 . . . . 18 Special . | . . . . . . . . . . Kinetic 411 | . 114 20 22 188 11 4 . . 52 Thermal 57 | . . . 42 5 7 3 . . . Explosive 11 | . . . . . . . . . 11 Electromagnetic 18 | . . . . . . . . . 18 Robot Hit Streak 37 | . 6 3 32 37 5 8 . . 17 Robot Miss Streak 5 | . 5 4 1 3 3 2 . . 5 Penetration Max . | . . . . . . . . . . Secondary Targets 6 | . 1 1 . 4 . . . . . Max Gunslinging Chain 1 | . 1 1 . 1 . . . . . Shots Hit Robots 318 | . 64 9 32 153 8 3 . . 49 Core Hits 201 | . 27 6 13 74 4 2 . . 75 Critical Kills 3 | . 1 . 1 1 . . . . . Critical Parts Destroyed 4 | . 1 1 . 2 . . . . . Critical Strikes 7 | . 2 1 1 3 . . . . . Meltdown 1 | . . . 1 . . . . . . Destroy 6 | . 2 1 . 3 . . . . . Melee Attacks 14 | . . . . . . . . 8 6 Impact 14 | . . . . . . . . 8 6 Slashing . | . . . . . . . . . . Piercing . | . . . . . . . . . . Sneak Attacks . | . . . . . . . . . . Combat Hostiles . | . . . . . . . . . . Follow-up Attacks . | . . . . . . . . . . Damage Inflicted 8199 | 11 817 143 706 3137 190 63 . . 3132 Guns 3561 | . 768 141 185 2101 75 9 . . 282 Cannons 1082 | . . . 521 56 115 54 . . 336 Explosions 3119 | . . . . 874 . . . . 2245 Melee 269 | . . . . . . . . . 269 Ramming 168 | 11 49 2 . 106 . . . . . Kinetic 4985 | . 768 141 185 2975 75 9 . . 832 Thermal 746 | . . . 521 56 115 54 . . . Explosive 1695 | . . . . . . . . . 1695 Electromagnetic 336 | . . . . . . . . . 336 Impact 269 | . . . . . . . . . 269 Slashing . | . . . . . . . . . . Piercing . | . . . . . . . . . . Highest Corruption 4 | . . . . . 2 2 2 2 4 Average Corruption 1 | . . . . . 1 2 2 2 3 Corruption Purged . | . . . . . . . . . . Corruption Blocked . | . . . . . . . . . . Effects 21 | . . . . . 6 8 6 1 . Message Errors 2 | . . . . . . . 2 . . Matter Fused 7 | . . . . . 1 3 2 1 . Heat Flow Errors 2 | . . . . . . 2 . . . Energy Discharges 4 | . . . . . 2 1 1 . . Data Loss (minor) 1 | . . . . . 1 . . . . Data Loss (major) 2 | . . . . . 1 1 . . . Misfires 2 | . . . . . 1 1 . . . Alerts 1 | . . . . . . . 1 . . Overload Shots . | . . . . . . . . . . Overflow Damage 107 | . . . . 40 . . . . 67 Projectiles . | . . . . . . . . . . Explosions 46 | . . . . 19 . . . . 27 Melee 61 | . . . . 21 . . . . 40 Knockbacks 2 | . . . . . . . . . 2 Impact 2 | . . . . . . . . . 2 Kinetic . | . . . . . . . . . . Secondary . | . . . . . . . . . . Self-Inflicted Damage 340 | . . . . 93 . . . . 247 Shots 10 | . . . . 3 . . . . 7 Rammed 18 | 4 4 1 . 9 . . . . . Targets Rammed 21 | 4 5 1 . 11 . . . . . Kicked . | . . . . . . . . . . Crushed 3 | . 1 . . 2 . . . . . Highest Temperature 240 | . 27 12 48 83 81 240 . . 171 Average Temperature 24 | . 6 5 14 17 31 74 . . 35 Received Heat Transfer 1813 | . 147 60 99 657 . . . . 850 Siege Activations . | . . . . . . . . . . Robots Corrupted 2 | . . . . . . . . . 2 Combat Hostiles 2 | . . . . . . . . . 2 Parts Fried . | . . . . . . . . . . Impact Corruptions 4 | . . . . 2 . . . . 2 Robots Melted 1 | . . . 1 . . . . . . Combat Hostiles 1 | . . . 1 . . . . . . Parts Melted 2 | . . . 2 . . . . . . Heat Transferred 999 | . . . 703 74 148 74 . . . Parts Sabotaged . | . . . . . . . . . . Parts Stolen . | . . . . . . . . . . Parts Stripped . | . . . . . . . . . . Power Chain Reactions . | . . . . . . . . . . Missiles Intercepted . | . . . . . . . . . . Alert | -11 -10 -10 -10 -8 -7 -7 -7 -7 -7 ------- Run | Yrd Mat Min Sub Mat Fac Low Low Zio Dee Peak Influence 338 | . 209 140 . 338 338 . . . . Initial 135 | . . 15 . . 135 . . . . Average 151 | . 61 78 . 205 191 . . . . Maximum Alert Level 1 | . 1 . . 1 1 . . . . Low Security (%) 68 | 100 98 100 . 47 80 . . . . Level 1 31 | . 1 . . 52 19 . . . . Level 2 . | . . . . . . . . . . Level 3 . | . . . . . . . . . . Level 4 . | . . . . . . . . . . Level 5 . | . . . . . . . . . . High Security . | . . . . . . . . . . Max Security . | . . . . . . . . . . Squads Dispatched 6 | . 1 . . 4 1 . . . . Investigation . | . . . . . . . . . . Extermination 1 | . . . . . 1 . . . . Reinforcement 5 | . 1 . . 4 . . . . . Assault . | . . . . . . . . . . Garrison . | . . . . . . . . . . Intercept . | . . . . . . . . . . Searches Triggered . | . . . . . . . . . . Construction Impeded . | . . . . . . . . . . Haulers Reinforced . | . . . . . . . . . . Active Scanning Responses . | . . . . . . . . . . Cargo Convoy Interrupts . | . . . . . . . . . . Stealth | -11 -10 -10 -10 -8 -7 -7 -7 -7 -7 --------- Run | Yrd Mat Min Sub Mat Fac Low Low Zio Dee Distress Signals 9 | . 3 . . 6 . . . . . Communications Jammed . | . . . . . . . . . . Distress Signals . | . . . . . . . . . . Times Spotted 162 | . 26 6 17 47 7 4 1 . 54 Peak Tracking Total 37 | . 6 2 2 7 4 3 1 . 37 Tactical Retreats 8 | . 5 2 1 . . . . . . Traps | -11 -10 -10 -10 -8 -7 -7 -7 -7 -7 ------- Run | Yrd Mat Min Sub Mat Fac Low Low Zio Dee Traps Triggered 1 | . . . . . 1 . . . . Indirectly . | . . . . . . . . . . Trap Hack Attempts . | . . . . . . . . . . Triggered . | . . . . . . . . . . Disarmed . | . . . . . . . . . . Reprogrammed . | . . . . . . . . . . Reused . | . . . . . . . . . . Traps Extracted . | . . . . . . . . . . Installed . | . . . . . . . . . . Triggered 1 | . . . . . . . 1 . . Machines | -11 -10 -10 -10 -8 -7 -7 -7 -7 -7 ---------- Run | Yrd Mat Min Sub Mat Fac Low Low Zio Dee Machines Disabled 7 | . . 1 2 1 1 . . . 2 Max in Single Turn 1 | . . 1 1 1 1 . . . 1 Machines Repaired . | . . . . . . . . . . Machines Dismantled . | . . . . . . . . . . Machines Sabotaged . | . . . . . . . . . . Overloaded Fab Kills . | . . . . . . . . . . Hacking | -11 -10 -10 -10 -8 -7 -7 -7 -7 -7 --------- Run | Yrd Mat Min Sub Mat Fac Low Low Zio Dee Machines Accessed 12 | . 5 1 1 3 1 . 1 . . Terminals 8 | . 5 . . 2 1 . . . . Fabricators . | . . . . . . . . . . Repair Stations 1 | . . . . 1 . . . . . Recycling Units . | . . . . . . . . . . Scanalyzers . | . . . . . . . . . . Garrison Access . | . . . . . . . . . . Total Hacks 36 | . 12 1 9 10 3 . 1 . . Successful 22 | . 6 1 9 4 1 . 1 . . Failed 13 | . 5 . . 6 2 . . . . Catastrophic 3 | . 1 . . 1 1 . . . . Database Lockouts 1 | . 1 . . . . . . . . Manual 21 | . 12 . . 5 3 . . 1 . Terminals 20 | . 12 . . 5 3 . . . . Fabricators . | . . . . . . . . . . Repair Stations 5 | . . . . 5 . . . . . Recycling Units . | . . . . . . . . . . Scanalyzers . | . . . . . . . . . . Garrison Access . | . . . . . . . . . . Terminal Hacks 18 | . 5 1 9 1 1 . 1 . . Record 8 | . . . 8 . . . . . . Robot Analysis 1 | . 1 . . . . . . . . Open Door 2 | . . 1 . . . . 1 . . Branch Access Points 1 | . . . . . 1 . . . . Locate Traps 3 | . 3 . . . . . . . . Zone Layout 2 | . 1 . . 1 . . . . . Derelict Proto ID Bank 1 | . . . 1 . . . . . . Fabricator Hacks . | . . . . . . . . . . Repair Station Hacks 3 | . . . . 3 . . . . . Scan Component 2 | . . . . 2 . . . . . Repair 1 | . . . . 1 . . . . . Recycling Unit Hacks . | . . . . . . . . . . Scanalyzer . | . . . . . . . . . . Garrison Access Hacks . | . . . . . . . . . . Unauthorized Hacks 1 | . 1 . . . . . . . . Terminals 1 | . 1 . . . . . . . . Operators 1 | . 1 . . . . . . . . Fabricators . | . . . . . . . . . . Repair Stations . | . . . . . . . . . . Recycling Units . | . . . . . . . . . . Scanalyzers . | . . . . . . . . . . Garrison Access . | . . . . . . . . . . Data Cores Recovered 1 | . . . . . 1 . . . . Used 1 | . . . . . 1 . . . . Hacking Detections 8 | . 4 . . 3 1 . . . . Full Trace Events . | . . . . . . . . . . Feedback Events . | . . . . . . . . . . Feedback Blocked . | . . . . . . . . . . Robot Schematics Acquired . | . . . . . . . . . . Robots Built . | . . . . . . . . . . Authchips . | . . . . . . . . . . Time . | . . . . . . . . . . Total Robot Build Rating . | . . . . . . . . . . Part Schematics Acquired . | . . . . . . . . . . Parts Built . | . . . . . . . . . . Authchips . | . . . . . . . . . . Time . | . . . . . . . . . . Total Part Build Rating . | . . . . . . . . . . Parts Repaired 1 | . . . . 1 . . . . . Time 32 | . . . . 32 . . . . . Parts Recycled . | . . . . . . . . . . Recycled Matter . | . . . . . . . . . . Retrieved Matter . | . . . . . . . . . . Retrieved Components . | . . . . . . . . . . Parts Scanalyzed . | . . . . . . . . . . Part Schematics Acquired . | . . . . . . . . . . Parts Damaged . | . . . . . . . . . . Bothacking | -11 -10 -10 -10 -8 -7 -7 -7 -7 -7 ------------ Run | Yrd Mat Min Sub Mat Fac Low Low Zio Dee Used RIF Installer . | . . . . . . . . . . Robots Hacked . | . . . . . . . . . . Non-combat . | . . . . . . . . . . Combat . | . . . . . . . . . . Robot Hacks Applied . | . . . . . . . . . . Relay Couplers Released . | . . . . . . . . . . Fabnet Peak Effective % . | . . . . . . . . . . Robots Rewired . | . . . . . . . . . . Allies Hacked . | . . . . . . . . . . Hacks Repelled . | . . . . . . . . . . Allies | -11 -10 -10 -10 -8 -7 -7 -7 -7 -7 -------- Run | Yrd Mat Min Sub Mat Fac Low Low Zio Dee Total Allies 3 | . . . . 1 . . . 2 . Largest Group 3 | . . . . 1 1 1 1 3 3 Highest-Rated Group 243 | . . . . 59 59 54 54 243 243 Highest-Rated Ally 96 | . . . . 59 59 54 54 96 96 Total Orders 14 | . . . 13 . . . . . 1 STAY 1 | . . . . . . . . . 1 EXPLORE 9 | . . . 9 . . . . . . RETURN 4 | . . . 4 . . . . . . Ally Attacks 89 | . . . 16 2 15 3 11 . 42 Total Damage 1701 | . . . . 78 447 76 411 . 689 Kills 15 | . . . . 1 4 3 4 . 3 Allies Corrupted . | . . . . . . . . . . Allies Melted 1 | . . . . . . . . . 1 Intel | -11 -10 -10 -10 -8 -7 -7 -7 -7 -7 ------- Run | Yrd Mat Min Sub Mat Fac Low Low Zio Dee Robot Analysis Total 1 | . 1 . . . . . . . . Derelict Logs Recovered 7 | . . . 3 . . 1 2 1 . Drone Launches 20 | . . . 20 . . . . . . Drone Recoveries 4 | . . . 4 . . . . . . Exploration | -11 -10 -10 -10 -8 -7 -7 -7 -7 -7 ------------- Run | Yrd Mat Min Sub Mat Fac Low Low Zio Dee Turns Passed 12828 | 167 1279 623 2583 3115 510 495 535 1977 1544 Spaces Moved 6254 | 97 665 241 1227 1023 237 305 310 1216 933 Core 8 | 8 . . . . . . . . . Treads 4264 | 89 665 211 . 1023 237 305 310 1216 208 Legs . | . . . . . . . . . . Wheels 1982 | . . 30 1227 . . . . . 725 Hover . | . . . . . . . . . . Flight . | . . . . . . . . . . Fastest Speed 50 | 50 160 160 100 243 158 158 158 158 130 Average Speed 175 | 150 160 161 179 249 192 158 158 158 136 Slowest Speed 345 | 160 160 175 190 345 243 158 158 158 250 Overloaded Moves . | . . . . . . . . . . Propulsion Burnouts . | . . . . . . . . . . Robots Hopped . | . . . . . . . . . . Cave-ins Triggered . | . . . . . . . . . . Exploration Rate (%) 59 | 6 93 49 86 78 9 57 56 86 77 Regions Visited 9 Branch Regions 6 Pre-discovered Areas 5 | . . . 2 . . 1 1 1 . Known Exits Taken 1 | . . . . . 1 . . . . Unknown Exits Taken 8 | 1 1 1 1 1 . 1 1 1 . Scrap Searched 14 | . . 1 5 . . 1 2 5 . Spaces Dug 44 | . . . . 2 . . . 2 40 Terrain Destroyed 221 | . . . . 122 2 1 . 2 94 Melee 3 | . . . . . . . . 2 1 Projectile 8 | . . . . 5 2 1 . . . AOE 210 | . . . . 117 . . . . 93 Terrain Rammed . | . . . . . . . . . . Walls Destroyed . | . . . . . . . . . . Machines Disabled . | . . . . . . . . . . Actions | -11 -10 -10 -10 -8 -7 -7 -7 -7 -7 --------- Run | Yrd Mat Min Sub Mat Fac Low Low Zio Dee Total 7595 | 113 771 452 1543 1390 274 311 356 1270 1115 Wait 742 | 2 16 196 237 172 18 1 37 14 49 Move 6245 | 96 664 240 1226 1022 236 304 309 1215 933 Hop . | . . . . . . . . . . Pick Up 97 | 4 15 1 24 25 5 . 3 9 11 Fast Attach 29 | 6 2 . 1 7 . . . 3 10 Attach 28 | . 1 1 4 9 2 . . . 11 Detach 6 | . 1 . . . . . . . 5 Swap 52 | . 4 3 3 12 2 1 4 7 16 Drop 75 | 1 6 . 5 30 1 1 3 14 14 Fire 286 | . 57 10 43 102 10 4 . . 60 Melee 14 | . . . . . . . . 8 6 Ram . | . . . . . . . . . . Kick . | . . . . . . . . . . Crush 21 | 4 5 1 . 11 . . . . . Escape Stasis . | . . . . . . . . . . Rewire . | . . . . . . . . . . Trap . | . . . . . . . . . . Miscellaneous . | . . . . . . . . . . Route ------- -11/Scrapyard -10/Materials (discovered 5 exits: [*Mat x3] / *Min x2) -10/Mines (discovered 2 exits: [*Mat] / *Sub) -10/Subcaves (discovered 3 exits: *Mat x2 / [*Rec]) -8/Materials (discovered 2 exits: *Fac x2) -7/Factory (discovered 4 exits: Sto x2 / *Low x2) -7/Lower Caves -7/Lower Caves -7/Zion (discovered 2 exits: [*Dee] / [*Pro]) -7/Deep Caves (discovered 1 exit: [*Pro]) History --------- Turn | Location | Event 61 | -11/Scrapyard | Discovered new exit (range 16) 168 | -11/Scrapyard | Entered Materials 305 | -10/Materials | Build established: Mutant 687 | -10/Materials | Discovered new exit (range 16) 797 | -10/Materials | Discovered new exit (range 13) 882 | -10/Materials | Central database locked down 904 | -10/Materials | Discovered new exit (range 15) 1125 | -10/Materials | Discovered new exit (range 16) 1363 | -10/Materials | Discovered new exit (range 8) 1447 | -10/Materials | Entered Mines 1536 | -10/Mines | Assembled infested the area 1541 | -10/Mines | Assisted by a Guerilla fighting off Assembled 1930 | -10/Mines | Discovered new exit (range 14) 2008 | -10/Mines | Found the Drone Emporium 2017 | -10/Mines | Found Prototype Device 2059 | -10/Mines | Discovered new exit (range 6) 2070 | -10/Mines | Entered Subcaves 2100 | -10/Subcaves | Identified Bomb Drone Bay 2117 | -10/Subcaves | Discovered new exit (range 18) 2129 | -10/Subcaves | Discovered new exit (range 50) 2318 | -10/Subcaves | Disturbed a concealed Subdweller 2412 | -10/Subcaves | Discovered new exit (range 15) 2417 | -10/Subcaves | Ambushed by angry Subdweller bent on revenge 2464 | -10/Subcaves | Lost 8 allies 3055 | -10/Subcaves | Visited 4L-MR0's lab 3073 | -10/Subcaves | Found Cargo Legs 3086 | -10/Subcaves | Found Botcube 3511 | -10/Subcaves | A swath of the cavern ceiling suddenly collapsed 3725 | -10/Subcaves | Learned location of Zion (-7) 3739 | -10/Subcaves | A swath of the cavern ceiling suddenly collapsed 3817 | -10/Subcaves | Core integrity fell below 50% 3879 | -10/Subcaves | Build established: Subdweller-Mutant 4491 | -10/Subcaves | Disturbed a concealed Subdweller 4653 | -10/Subcaves | Entered Materials 4653 | -8/Materials | Evolved 4 slots: Propulsion x2, Utility x2 5129 | -8/Materials | Build established: Derelict-Mutant 5337 | -8/Materials | Discovered new exit (range 15) 5533 | -8/Materials | Build established: Mutant 6057 | -8/Materials | Discovered new exit (range 15) 6179 | -8/Materials | Repaired Spk. Treads 7443 | -8/Materials | Botcube activated 7467 | -8/Materials | Botcube completed mutation into legged form, armed with 2 guns. 7768 | -8/Materials | Entered Factory 7768 | -7/Factory | Accompanied by 1 ally 7768 | -7/Factory | Evolved 2 slots: Utility x2 7821 | -7/Factory | Identified exit to Storage 7821 | -7/Factory | Identified exit to Lower Caves 8278 | -7/Factory | Entered Lower Caves 8278 | -7/Lower Caves | Accompanied by 1 ally 8565 | -7/Lower Caves | Discovered new exit (range 11) 8773 | -7/Lower Caves | Entered another Lower Caves area 8773 | -7/Lower Caves | Accompanied by 1 ally 8861 | -7/Lower Caves | Learned 4 Factory zone layouts 9221 | -7/Lower Caves | Discovered new exit (range 16) 9308 | -7/Lower Caves | Entered Zion 9308 | -7/Zion | Accompanied by 1 ally 9360 | -7/Zion | Given A8's code to call for help 9388 | -7/Zion | Discovered new exit (range 14) 9445 | -7/Zion | System corruption cleaned by Quarantine Array 9883 | -7/Zion | Found CR-A16's Pointy Stick 10199 | -7/Zion | Learned location of Extension (-6) 10395 | -7/Zion | Learned Factory emergency access door positions 10875 | -7/Zion | Build established: Derelict-Mutant 11263 | -7/Zion | Discovered new exit (range 5) 11264 | -7/Zion | Saw the warning signs outside the Deep Caves entrance 11273 | -7/Zion | Enhanced Grunt warped into view, answering call for help 11279 | -7/Zion | Enhanced Grunt warped into view, answering call for help 11285 | -7/Zion | Entered Deep Caves 11285 | -7/Deep Caves | Accompanied by 3 allies 11622 | -7/Deep Caves | Attacked by Z-Imprinter 11685 | -7/Deep Caves | Destroyed Z-Imprinter 11692 | -7/Deep Caves | Lost 3 allies 11712 | -7/Deep Caves | Found Prototype Device 11712 | -7/Deep Caves | Identified Zio. Metafield Generator 11715 | -7/Deep Caves | Lost 8 parts (3n2u3w) 11758 | -7/Deep Caves | Found Prototype Protection 11758 | -7/Deep Caves | Identified Zio. Weapon Casing 11769 | -7/Deep Caves | Found Zio. Weapon Casing 11819 | -7/Deep Caves | Z-Facility disabled 11913 | -7/Deep Caves | Found Prototype Protection 11913 | -7/Deep Caves | Identified Zio. Heavy Carapace 11923 | -7/Deep Caves | Found Zio. Weapon Casing 11927 | -7/Deep Caves | Found Zio. Weapon Casing 11977 | -7/Deep Caves | Found Zio. Heavy Carapace 12198 | -7/Deep Caves | Build established: Mutant 12289 | -7/Deep Caves | Discovered new exit (range 6) 12363 | -7/Deep Caves | Spotted as-45925 12398 | -7/Deep Caves | Destroyed as-45925 12426 | -7/Deep Caves | Lost 3 parts (3u) 12714 | -7/Deep Caves | Spotted as-44659 12760 | -7/Deep Caves | Destroyed as-44659 12772 | -7/Deep Caves | Found Prototype Device 12772 | -7/Deep Caves | Identified Trap Reconfigurator 12789 | -7/Deep Caves | Lost 4 parts (4u) 12805 | -7/Deep Caves | Triggered Deep Caves wall 12805 | -7/Deep Caves | Spotted AS-52237 12805 | -7/Deep Caves | Spotted AS-06775 12808 | -7/Deep Caves | Exposed GOLEM chamber 12813 | -7/Deep Caves | Core integrity fell below 50% 12829 | -7/Deep Caves | Self-destructed Last Messages --------------- 12815_ as-53523 destroyed. 12815_ as-40396 destroyed. 12816_ Cld. Deuterium Engine destroyed. 12816_ System corrupted by crushing effect (+3). 12816_ Critical hit (Burn: +80). 12820_ as-56079 destroyed. 12820_ Arm. Huge Wheel destroyed. 12822_ Dropped Zio. Biocell. 12822_ Penetrated by Slug. 12823_ Extracted 48 energy. 12823_ as-19460 destroyed. 12824_ Extracted 43 energy. 12825_ as-35775 released from Mobile Assembly Unit. 12825_ as-25969 released from Mobile Assembly Unit. 12825_ Zio. Weapon Casing destroyed. 12825_ as-82500 destroyed. 12826_ Extracted 43 energy. 12826_ Penetrated by Slug. 12826_ Slug penetrates as-35775. 12828_ Extracted 43 energy. Map ----- +----------------------------------------------------+ | ?????????????????????????????????????????? | | ?????????????????????????????????????????? | | ?????????????????????????????????????????? | | ?????????????????????????????????????????? | | ??????????????? ?#??#????????????????????? | | ????????????? # ? ????????????????????? | | ??????????? # # ????????????????????? | | ?????????? # ??##?????????????#### | | ?????????? # ?? #???????????### # | | ????????? ?? #???????????# | | ?????????"" ?? #???????????# | | ????????" ## #????#####??## ## | | ????????" # ##???# ##??# #? | | ????????" ???# #### #? | | ????????# ?????# #? | | ?????????" ??????# ## | | ?????????" ###????## # | | ????????"" #?????# | | ????????"! ##"##????# | | ????????"! ### #????## | | ??????### ### ####??# | | ???"""" b # % #??# | | ??? A a #;##??## | | ??" a ###???## #### | | ??" a a a #????####??## | | ??" @ l ###???????????# | | ??" A a a ]] ##????????????? | | ??"a a a a #????????????? | | ??? a #?#####??????# | | ???"""" ] #?# #?????## | | ??????### ! #?# ##???## | | ????????"" !! #?# #??## | | ?????????" s b! ### #?## | | ?????????" ## ### | | ?????????" [ g ## ## | | ?????????" ![ * ## ## | | ????????? ! [! * ### ### | | ????????" #?## ### | | ????????? !%= ##### ## | | ????????? ## | | ????????""" ** ##? | | ????????" ##?? | | ?????????" ##########??? | | ????????" #???????????? | | ?????????" % ##???????????? | | ????????" # # #????????????? | | ????????" #### ## ## ##????????????? | | ????????""" ???????# ?# ####?????????????? | | ???????????????????#??# #????????????????? | | ??????????????????????###????????????????? | +----------------------------------------------------+ Best States ------------- Heat Dissipation 34 Energy Generation 18 Energy Capacity 910 Matter Stores 300 Matter Capacity 300 Sight Range 16 Terrain Scan Density 10 Armor Coverage 1600 Utility Shielding 66 Weapon Shielding 100 Evasion (%) 40 Targeting Accuracy 6 Recoil Reduction 4 Salvage Targeting 4 Defensive Hacking 10 Item Schematics ----------------- None Robot Schematics ------------------ None Fabricated ------------ Nothing Alien Tech Used ----------------- None Achievements -------------- None Challenges ------------ None Game ------ Seed StealthBiometalPit Manual? 0 Play Time 01:09:15 Cumulative 539.8 hours Start 2023.12.20 @ 18:15:08 End 2023.12.20 @ 19:40:07 Sessions 6 Manual Loads 0 Difficulty Rogue Special Mode None Game No. 593 Rogue 506 Adventurer 87 Explorer 0 Win Type - Total 30 Types 8/0/16/1/1/1/3/0/0 Lore% 91 Gallery% 94 Achievement% 79 Wizard Run 0 Options --------- ASCII 0 Keyboard 1 Movement Numpad Keybinds 0 Fullscreen 1 Font 18/SmallcapsGlow Map View 76x50 Zoom Use 1% Tactical HUD 1 Map Filters NONE Filters NONE Steam 1 RUN: c888cbc9-eca1-4e7d-9a15-ab2982e5f79e